bitfinex/quotes_BTCUSD_20240818
["timestamp","ask_amount","ask_price","bid_price","bid_amount"]
[1723958722499,0.0637,59623.0,59598.0,0.12501967]
[1723958722707,0.0637,59623.0,59593.0,0.00844075]
[1723958722708,0.050338,59597.0,59593.0,0.00844075]
[1723958722901,0.06463457,59611.0,59594.0,0.0637]
[1723958722902,0.00335119,59610.0,59594.0,0.0637]
[1723958723286,0.050339,59595.0,59594.0,0.0637]
[1723958723489,0.123,59610.0,59594.0,0.0637]
[1723958723490,0.100666,59603.0,59594.0,0.0637]
[1723958723696,0.100666,59603.0,59593.0,0.00844075]
[1723958723697,0.05034,59595.0,59593.0,0.00844075]
[1723958723903,0.100674,59599.0,59593.0,0.00844075]
[1723958723904,0.050338,59597.0,59593.0,0.00844075]
[1723958724330,0.100669,59602.0,59594.0,0.05034]
[1723958724509,0.100669,59601.0,59594.0,0.01596668]
[1723958724714,0.008,59597.0,59595.0,0.00335563]
[1723958724916,0.008,59597.0,59593.0,0.00844075]
[1723958724917,0.008,59597.0,59596.0,0.0804]
[1723958725325,0.008,59597.0,59596.0,0.09465352]
[1723958725532,0.007,59597.0,59596.0,0.09465352]
[1723958726001,0.015,59597.0,59596.0,0.09465352]
[1723958726214,0.007,59597.0,59596.0,0.0804]
[1723958726832,0.100662,59606.0,59596.0,0.0804]
[1723958726986,0.100667,59603.0,59596.0,0.0804]
[1723958727192,0.007,59597.0,59596.0,0.0804]
[1723958727608,0.015,59597.0,59596.0,0.0804]
[1723958727803,0.008,59597.0,59596.0,0.0804]
[1723958728143,0.050335,59600.0,59596.0,0.0804]
[1723958728770,0.100663,59605.0,59597.0,0.00335552]
[1723958728901,0.100662,59606.0,59597.0,0.00335552]
[1723958728902,0.05033,59606.0,59599.0,0.111336]
[1723958729105,0.100642,59618.0,59602.0,0.100667]
[1723958729330,0.050324,59613.0,59607.0,0.050329]
[1723958729506,0.01026662,59623.0,59608.0,0.0859549]
[1723958729507,0.10064,59618.0,59608.0,0.0859549]
[1723958729710,0.050322,59616.0,59610.0,0.050326]
[1723958729914,0.050322,59616.0,59608.0,0.0859549]
[1723958730296,0.27218954,59622.0,59610.0,0.050326]
[1723958730502,0.050321,59617.0,59611.0,0.050325]
[1723958730850,0.17155454,59622.0,59611.0,0.050325]
[1723958730851,0.050318,59620.0,59613.0,0.111324]
[1723958731052,0.100625,59627.0,59614.0,0.10400143]
[1723958731276,0.0657,59638.0,59619.0,0.050318]
[1723958731277,0.17155454,59631.0,59619.0,0.050318]
[1723958731491,0.014,59622.0,59621.0,0.050317]
[1723958731637,0.014,59622.0,59621.0,0.01362711]
[1723958731839,0.100613,59635.0,59621.0,0.01362711]
[1723958732045,0.05031,59630.0,59624.0,0.050315]
[1723958732273,0.050311,59629.0,59622.0,0.05366991]
[1723958732537,0.050312,59627.0,59623.0,0.0200217]
[1723958732660,0.050312,59627.0,59624.0,0.02489599]
[1723958732854,0.050312,59627.0,59622.0,0.00335391]
[1723958733057,0.050312,59627.0,59622.0,0.05366991]
[1723958733309,0.00335119,59631.0,59620.0,0.0826]
[1723958733608,0.0657,59625.0,59607.0,0.1436]
[1723958733717,0.050328,59608.0,59607.0,0.061]
[1723958733914,0.100638,59620.0,59607.0,0.061]
[1723958733915,0.050327,59610.0,59607.0,0.061]
[1723958734116,0.050324,59613.0,59607.0,0.061]
[1723958734474,0.100638,59620.0,59607.0,0.061]
[1723958734475,0.050323,59614.0,59607.0,0.061]
[1723958734708,0.050323,59614.0,59607.0,0.111329]
[1723958734882,0.27219254,59620.0,59608.0,0.050328]
[1723958735194,0.050323,59615.0,59608.0,0.050328]
[1723958735393,0.001,59613.0,59608.0,0.050328]
[1723958735682,0.050323,59615.0,59608.0,0.050328]
[1723958736727,0.002,59614.0,59608.0,0.050328]
[1723958736931,0.005,59614.0,59608.0,0.050328]
[1723958737152,0.050323,59615.0,59608.0,0.050328]
[1723958737589,0.057323,59615.0,59608.0,0.050328]
[1723958737790,0.053323,59615.0,59608.0,0.050328]
[1723958738092,0.003,59614.0,59608.0,0.050328]
[1723958738312,0.053324,59614.0,59608.0,0.050328]
[1723958738535,0.050324,59614.0,59608.0,0.050328]
[1723958738938,0.050324,59614.0,59608.0,0.0715269]
[1723958740330,0.052324,59614.0,59608.0,0.0715269]
[1723958740534,0.055324,59614.0,59608.0,0.0715269]
[1723958741179,0.050324,59613.0,59608.0,0.050328]
[1723958741329,0.005,59614.0,59607.0,0.061]
[1723958741529,0.050326,59611.0,59607.0,0.061]
[1723958741928,0.100651,59612.0,59607.0,0.061]
[1723958742146,0.050326,59611.0,59607.0,0.061]
[1723958742342,0.050327,59610.0,59607.0,0.061]
[1723958742928,0.050325,59612.0,59607.0,0.061]
[1723958744068,0.050326,59611.0,59607.0,0.061]
[1723958744573,0.050326,59611.0,59605.0,0.050331]
[1723958744981,0.050326,59611.0,59608.0,0.0009075]
[1723958745383,0.050327,59610.0,59608.0,0.0009075]
[1723958746844,0.6764323,59609.0,59608.0,0.0009075]
[1723958747050,0.8030873,59609.0,59608.0,0.0009075]
[1723958747269,0.9030873,59609.0,59608.0,0.00081122]
[1723958748262,0.9170873,59609.0,59608.0,0.00081122]
[1723958748690,1.03846708,59609.0,59608.0,0.00081122]
[1723958749227,1.05246708,59609.0,59608.0,0.00081122]
[1723958749925,0.79914654,59609.0,59608.0,0.00081122]
[1723958750126,0.42319154,59609.0,59608.0,0.00081122]
[1723958750296,0.43719154,59609.0,59608.0,0.00081122]
[1723958750496,0.45119154,59609.0,59608.0,0.00081122]
[1723958751295,0.43719154,59609.0,59608.0,0.00081122]
[1723958751692,0.45119154,59609.0,59608.0,0.00081122]
[1723958751892,0.43719154,59609.0,59608.0,0.00081122]
[1723958752328,0.078327,59609.0,59608.0,0.00081122]
[1723958752735,0.064327,59609.0,59608.0,0.00081122]
[1723958753125,0.078327,59609.0,59608.0,0.00081122]
[1723958754135,0.45119154,59609.0,59608.0,0.00081122]
[1723958755921,0.178982,59609.0,59608.0,0.00081122]
[1723958757585,0.45201654,59609.0,59608.0,0.00081122]
[1723958762951,0.55267154,59609.0,59608.0,0.00081122]
[1723958763154,0.71940611,59609.0,59608.0,0.00081122]
[1723958763354,0.92006111,59609.0,59608.0,0.00081122]
[1723958763527,0.87047476,59609.0,59608.0,0.00081122]
[1723958764512,0.87179169,59609.0,59608.0,0.00081122]
[1723958764869,0.99716397,59609.0,59608.0,0.00081122]
[1723958765462,0.93333898,59609.0,59608.0,0.00081122]
[1723958765681,0.8079439,59609.0,59608.0,0.00081122]
[1723958766373,0.93333898,59609.0,59608.0,0.00081122]
[1723958767163,1.12732788,59609.0,59608.0,0.00081122]
[1723958767406,0.95786734,59609.0,59608.0,0.00081122]
[1723958767609,0.93253347,59609.0,59608.0,0.00081122]
[1723958767810,0.95880156,59609.0,59608.0,0.00081122]
[1723958768237,0.94480156,59609.0,59608.0,0.00081122]
[1723958768444,0.93080156,59609.0,59608.0,0.00081122]
[1723958768656,1.03932913,59609.0,59608.0,0.00081122]
[1723958768861,1.06732913,59609.0,59608.0,0.00081122]
[1723958769244,1.05332913,59609.0,59608.0,0.00081122]
[1723958769440,1.06732913,59609.0,59608.0,0.00081122]
[1723958769880,1.21780323,59609.0,59608.0,0.00081122]
[1723958770195,0.93033575,59609.0,59608.0,0.00081122]
[1723958771391,0.9566029,59609.0,59608.0,0.00081122]
[1723958772151,0.93033575,59609.0,59608.0,0.00081122]
[1723958772363,0.95660245,59609.0,59608.0,0.00081122]
[1723958773191,0.77554745,59609.0,59608.0,0.00081122]
[1723958773395,0.85175276,59609.0,59608.0,0.00081122]
[1723958773847,0.72628075,59609.0,59608.0,0.00081122]
[1723958774186,0.82517574,59609.0,59608.0,0.00081122]
[1723958774391,0.82695805,59609.0,59608.0,0.00081122]
[1723958775201,0.75432997,59609.0,59608.0,0.00081122]
[1723958777688,0.87981014,59609.0,59608.0,0.00081122]
[1723958778265,0.75432997,59609.0,59608.0,0.00081122]
[1723958779666,0.65367497,59609.0,59608.0,0.00081122]
[1723958780070,0.62740806,59609.0,59608.0,0.00081122]
[1723958780268,0.65367345,59609.0,59608.0,0.00081122]
[1723958780495,0.65367345,59609.0,59608.0,0.08391122]
[1723958780496,0.40704631,59609.0,59608.0,0.08391122]
[1723958780645,0.179807,59609.0,59608.0,0.08391122]
[1723958780822,0.179807,59609.0,59608.0,0.09230234]
[1723958781024,0.23003559,59609.0,59608.0,0.09230234]
[1723958781429,0.25514995,59609.0,59608.0,0.08391122]
[1723958781630,0.179807,59609.0,59608.0,0.08391122]
[1723958782256,0.24114995,59609.0,59608.0,0.08391122]
[1723958782463,0.25514995,59609.0,59608.0,0.08391122]
[1723958783130,0.24114995,59609.0,59608.0,0.08391122]
[1723958783532,0.35697902,59609.0,59608.0,0.08391122]
[1723958783724,0.25652175,59609.0,59608.0,0.08391122]
[1723958783926,0.34297902,59609.0,59608.0,0.08391122]
[1723958784358,0.32897902,59609.0,59608.0,0.08391122]
[1723958784768,0.35697902,59609.0,59608.0,0.08391122]
[1723958784959,0.34297902,59609.0,59608.0,0.08391122]
[1723958785699,0.35697902,59609.0,59608.0,0.08391122]
[1723958786300,0.34297902,59609.0,59608.0,0.08391122]
[1723958786581,0.165807,59609.0,59608.0,0.08391122]
[1723958787119,0.179807,59609.0,59608.0,0.08391122]
[1723958787321,0.35801598,59609.0,59608.0,0.08391122]
[1723958790203,0.20703398,59609.0,59608.0,0.20503034]
[1723958790337,0.028825,59609.0,59608.0,0.20503034]
[1723958790769,0.028825,59609.0,59608.0,0.32652704]
[1723958790968,0.014825,59609.0,59608.0,0.43053893]
[1723958791279,0.010825,59609.0,59608.0,0.43053893]
[1723958791507,0.022825,59609.0,59608.0,0.43053893]
[1723958791681,0.022825,59609.0,59608.0,0.42718404]
[1723958792842,0.022825,59609.0,59608.0,0.32652142]
[1723958793790,0.022825,59609.0,59608.0,0.32652172]
[1723958795917,0.022825,59609.0,59608.0,0.32652153]
[1723958796316,0.022825,59609.0,59608.0,0.3265213]
[1723958796677,0.022825,59609.0,59608.0,0.29729622]
[1723958806302,0.022825,59609.0,59608.0,0.31813227]
[1723958809394,0.022825,59609.0,59608.0,0.29729622]
[1723958809623,0.022825,59609.0,59608.0,0.31812998]
[1723958813636,0.022825,59609.0,59608.0,0.3181294]
[1723958814092,0.022825,59609.0,59608.0,0.29729622]
[1723958814244,0.022825,59609.0,59608.0,0.31813005]
[1723958816039,0.022825,59609.0,59608.0,0.39993005]
[1723958819161,0.022825,59609.0,59608.0,0.4348615]
[1723958819935,0.022825,59609.0,59608.0,0.43486202]
[1723958820942,0.022825,59609.0,59608.0,0.37909622]
[1723958821149,0.022825,59609.0,59608.0,0.43486164]
[1723958823676,0.022825,59609.0,59608.0,0.53551864]
[1723958825066,0.022825,59609.0,59608.0,0.48075322]
[1723958825274,0.022825,59609.0,59608.0,0.5355094]
[1723958825474,0.022825,59609.0,59608.0,0.5365094]
[1723958825874,0.012825,59609.0,59608.0,0.5355094]
[1723958826211,0.020825,59609.0,59608.0,0.5355094]
[1723958826413,0.020825,59609.0,59608.0,0.6361664]
[1723958826613,0.020825,59609.0,59608.0,0.5355094]
[1723958826818,0.012825,59609.0,59608.0,0.5355094]
[1723958827228,0.000825,59609.0,59608.0,0.6361664]
[1723958827429,0.002825,59609.0,59608.0,0.64636224]
[1723958827786,0.002825,59609.0,59608.0,0.54570524]
[1723958827992,0.002825,59609.0,59608.0,0.54870524]
[1723958828388,0.002825,59609.0,59608.0,0.65136224]
[1723958829055,0.002825,59609.0,59608.0,0.54770524]
[1723958829216,0.002825,59609.0,59608.0,0.5385094]
[1723958829885,0.002825,59609.0,59608.0,0.6391664]
[1723958830002,0.002825,59609.0,59608.0,0.5415094]
[1723958830201,0.002825,59609.0,59608.0,0.4567094]
[1723958830412,0.002825,59609.0,59608.0,0.5385094]
[1723958831589,0.002825,59609.0,59608.0,0.6391664]
[1723958831727,0.002825,59609.0,59608.0,0.5385094]
[1723958833074,0.002825,59609.0,59608.0,0.53850051]
[1723958834040,0.002825,59609.0,59608.0,0.63915751]
[1723958834304,0.002825,59609.0,59608.0,0.53850051]
[1723958836691,0.002825,59609.0,59608.0,1.80790051]
[1723958837630,0.002825,59609.0,59608.0,1.80790081]
[1723958840213,0.130852,59609.0,59608.0,0.0246376]
[1723958840464,0.130852,59609.0,59608.0,0.00381122]
[1723958840465,0.25972759,59609.0,59608.0,0.00381122]
[1723958840717,0.28491177,59609.0,59608.0,0.00381122]
[1723958840928,0.33323877,59609.0,59608.0,0.00081122]
[1723958841374,0.34223877,59609.0,59608.0,0.00081122]
[1723958841605,0.33723877,59609.0,59608.0,0.00081122]
[1723958841808,0.34423877,59609.0,59608.0,0.00081122]
[1723958842088,0.21431789,59609.0,59608.0,0.00081122]
[1723958842330,0.3210251,59609.0,59608.0,0.00081122]
[1723958842589,0.27069639,59609.0,59608.0,0.00081122]
[1723958842804,0.32102339,59609.0,59608.0,0.00081122]
[1723958843233,0.27069639,59609.0,59608.0,0.00081122]
[1723958843493,0.27069639,59609.0,59608.0,0.01410544]
[1723958843734,0.08934468,59609.0,59608.0,0.06443344]
[1723958844156,0.08934468,59609.0,59608.0,0.01410544]
[1723958844401,0.06416706,59609.0,59608.0,0.01410544]
[1723958844628,0.06416706,59609.0,59608.0,0.00081122]
[1723958844831,0.013825,59609.0,59608.0,0.00081122]
[1723958844958,0.08934468,59609.0,59608.0,0.00081122]
[1723958845158,0.06416535,59609.0,59608.0,0.00081122]
[1723958845382,0.21737168,59609.0,59608.0,0.00081122]
[1723958845749,0.141852,59609.0,59608.0,0.00081122]
[1723958846143,0.21735902,59609.0,59608.0,0.00081122]
[1723958846382,0.16703202,59609.0,59608.0,0.00081122]
[1723958846662,0.16703202,59609.0,59596.0,0.0009075]
[1723958846663,0.31539,59597.0,59596.0,0.0009075]
[1723958846941,0.65014366,59597.0,59596.0,0.0009075]
[1723958847252,0.85081966,59597.0,59596.0,0.0009075]
[1723958847457,1.00171837,59597.0,59596.0,0.0009075]
[1723958847696,1.08901264,59597.0,59596.0,0.0009075]
[1723958847931,1.10201264,59597.0,59596.0,0.0009075]
[1723958848176,0.92811966,59597.0,59596.0,0.0009075]
[1723958848658,0.94211966,59597.0,59596.0,0.0009075]
[1723958848900,0.91511966,59597.0,59596.0,0.0009075]
[1723958849145,0.92911966,59597.0,59596.0,0.0009075]
[1723958849377,0.93911957,59597.0,59596.0,0.0009075]
[1723958850122,0.85731957,59597.0,59596.0,0.0009075]
[1723958850382,0.87131957,59597.0,59596.0,0.0009075]
[1723958850871,0.87231957,59597.0,59596.0,0.0009075]
[1723958851134,0.87431957,59597.0,59596.0,0.0009075]
[1723958851634,0.88039457,59597.0,59596.0,0.0009075]
[1723958852355,1.06530874,59597.0,59596.0,0.0009075]
[1723958852624,1.07438374,59597.0,59596.0,0.0009075]
[1723958853107,1.09738374,59597.0,59596.0,0.0009075]
[1723958853311,0.91902957,59597.0,59596.0,0.0009075]
[1723958853486,0.99422751,59597.0,59596.0,0.0009075]
[1723958853737,0.90054458,59597.0,59596.0,0.0009075]
[1723958854305,0.89146958,59597.0,59596.0,0.0009075]
[1723958854677,0.90054458,59597.0,59596.0,0.0009075]
[1723958855359,0.87544796,59597.0,59596.0,0.0009075]
[1723958855833,0.86544805,59597.0,59596.0,0.0009075]
[1723958856240,0.96953904,59597.0,59596.0,0.0009075]
[1723958857371,0.91943772,59597.0,59596.0,0.0009075]
[1723958859668,0.81534673,59597.0,59596.0,0.0009075]
[1723958864907,0.80627173,59597.0,59596.0,0.0009075]
[1723958866529,0.55459573,59597.0,59596.0,0.0009075]
[1723958866931,0.65527173,59597.0,59596.0,0.0009075]
[1723958868335,0.45459573,59597.0,59596.0,0.0009075]
[1723958869340,0.55527173,59597.0,59596.0,0.0009075]
[1723958869559,0.45459573,59597.0,59596.0,0.0009075]
[1723958870910,0.55527173,59597.0,59596.0,0.0009075]
[1723958871046,0.45124454,59597.0,59596.0,0.0009075]
[1723958881189,0.47751391,59597.0,59596.0,0.0009075]
[1723958883514,0.48748308,59597.0,59596.0,0.0009075]
[1723958883651,0.56948308,59597.0,59596.0,0.0009075]
[1723958884093,0.61964397,59597.0,59596.0,0.0009075]
[1723958885136,0.64472441,59597.0,59596.0,0.0009075]
[1723958885785,0.74540041,59597.0,59596.0,0.0009075]
[1723958885987,0.74714437,59597.0,59596.0,0.0009075]
[1723958886393,0.87271654,59597.0,59596.0,0.0009075]
[1723958886604,0.95916881,59597.0,59596.0,0.0009075]
[1723958886806,1.17085148,59597.0,59596.0,0.0009075]
[1723958887011,1.07246765,59597.0,59596.0,0.0009075]
[1723958887192,1.07200514,59597.0,59596.0,0.0009075]
[1723958887393,1.16161571,59597.0,59596.0,0.0009075]
[1723958887564,1.20500019,59597.0,59596.0,0.0009075]
[1723958887769,1.21900019,59597.0,59596.0,0.0009075]
[1723958887987,1.44537821,59597.0,59596.0,0.0009075]
[1723958888189,1.29464324,59597.0,59596.0,0.0009075]
[1723958888389,1.30864324,59597.0,59596.0,0.0009075]
[1723958888631,1.29464324,59597.0,59596.0,0.0009075]
[1723958889106,1.28064324,59597.0,59596.0,0.0009075]
[1723958889519,1.29464324,59597.0,59596.0,0.0009075]
[1723958889723,1.19396724,59597.0,59596.0,0.0009075]
[1723958889935,1.07654265,59597.0,59596.0,0.0009075]
[1723958890855,1.01524265,59597.0,59596.0,0.0009075]
[1723958891060,0.87442307,59597.0,59596.0,0.0009075]
[1723958891232,1.00616765,59597.0,59596.0,0.0009075]
[1723958891496,0.86534807,59597.0,59596.0,0.0009075]
[1723958891867,1.00616765,59597.0,59596.0,0.0009075]
[1723958892071,0.86534807,59597.0,59596.0,0.0009075]
[1723958892206,1.03492492,59597.0,59596.0,0.0009075]
[1723958892843,1.16726283,59597.0,59596.0,0.0009075]
[1723958893045,1.13850556,59597.0,59596.0,0.0009075]
[1723958894852,1.13850556,59597.0,59596.0,0.00081676]
[1723958894853,1.48847822,59597.0,59596.0,0.00081676]
[1723958895935,1.47447822,59597.0,59596.0,0.00081676]
[1723958896137,1.38780222,59597.0,59596.0,0.00081676]
[1723958896387,1.89119222,59597.0,59596.0,0.00081676]
[1723958896584,2.04874676,59597.0,59596.0,0.00081676]
[1723958896767,2.03474676,59597.0,59596.0,0.00081676]
[1723958896963,2.06274676,59597.0,59596.0,0.00081676]
[1723958897168,2.04874676,59597.0,59596.0,0.00081676]
[1723958897637,2.06274676,59597.0,59596.0,0.00081676]
[1723958899278,1.80529222,59597.0,59596.0,0.00081676]
[1723958899479,1.88719222,59597.0,59596.0,0.00081676]
[1723958899982,1.89119222,59597.0,59596.0,0.00081676]
[1723958900185,1.80529222,59597.0,59596.0,0.00081676]
[1723958900385,1.89119222,59597.0,59596.0,0.00081676]
[1723958900717,2.06274676,59597.0,59596.0,0.00081676]
[1723958901094,2.05874676,59597.0,59596.0,0.00081676]
[1723958901443,1.88719222,59597.0,59596.0,0.00081676]
[1723958901654,1.88819222,59597.0,59596.0,0.00081676]
[1723958901888,1.88719222,59597.0,59596.0,0.00081676]
[1723958902288,1.38638165,59597.0,59596.0,0.00081676]
[1723958902489,1.20330565,59597.0,59596.0,0.00081676]
[1723958902702,0.99266048,59597.0,59596.0,0.14271676]
[1723958902919,0.8015029,59597.0,59596.0,0.14271676]
[1723958903129,0.82557153,59597.0,59596.0,0.14271676]
[1723958903527,0.81157153,59597.0,59596.0,0.14271676]
[1723958904103,0.91157153,59597.0,59596.0,0.14271676]
[1723958904340,1.01224753,59597.0,59596.0,0.14271676]
[1723958904540,0.91157153,59597.0,59596.0,0.14271676]
[1723958904738,0.92557153,59597.0,59596.0,0.14271676]
[1723958904941,0.91157153,59597.0,59596.0,0.14271676]
[1723958905151,0.89757153,59597.0,59596.0,0.14271676]
[1723958905555,0.91157153,59597.0,59596.0,0.14271676]
[1723958905754,0.83928254,59597.0,59596.0,0.14271676]
[1723958905955,0.91976025,59597.0,59596.0,0.14271676]
[1723958906269,0.90576025,59597.0,59596.0,0.14271676]
[1723958906462,0.93376025,59597.0,59596.0,0.14271676]
[1723958906785,0.93376025,59597.0,59596.0,0.00081676]
[1723958906786,0.96012225,59597.0,59596.0,0.00081676]
[1723958906985,0.96012225,59597.0,59591.0,0.0002]
[1723958906986,0.23266057,59592.0,59591.0,0.0002]
[1723958907191,0.88218264,59592.0,59591.0,0.0002]
[1723958907340,1.09436883,59592.0,59591.0,0.0002]
[1723958907541,1.59775883,59592.0,59591.0,0.0002]
[1723958907770,1.65925883,59592.0,59591.0,0.0002]
[1723958907967,1.53760285,59592.0,59591.0,0.0002]
[1723958908166,1.53960285,59592.0,59591.0,0.0002]
[1723958909240,1.55360285,59592.0,59591.0,0.0002]
[1723958909395,1.55560285,59592.0,59591.0,0.0002]
[1723958909595,1.56558706,59592.0,59591.0,0.0002]
[1723958909797,1.71114577,59592.0,59591.0,0.0002]
[1723958910021,1.72514577,59592.0,59591.0,0.0002]
[1723958910222,1.73914577,59592.0,59591.0,0.0002]
[1723958910641,1.51315249,59592.0,59591.0,0.0002]
[1723958910812,1.68290011,59592.0,59591.0,0.0002]
[1723958911009,1.68383468,59592.0,59591.0,0.0002]
[1723958911434,1.51408706,59592.0,59591.0,0.0002]
[1723958911637,1.51315249,59592.0,59591.0,0.0002]
[1723958912277,1.43645249,59592.0,59591.0,0.0002]
[1723958913549,1.80104761,59592.0,59591.0,0.0002]
[1723958913963,1.83463761,59592.0,59591.0,0.0002]
[1723958914136,1.83463761,59592.0,59591.0,0.00012546]
[1723958914502,1.82063761,59592.0,59591.0,0.00012546]
[1723958914907,1.83463761,59592.0,59591.0,0.00012546]
[1723958915113,1.82063761,59592.0,59591.0,0.00012546]
[1723958915726,1.83463761,59592.0,59591.0,0.00012546]
[1723958916245,1.82063761,59592.0,59591.0,0.00012546]
[1723958916660,1.83463761,59592.0,59591.0,0.00012546]
[1723958917104,0.66273057,59590.0,59589.0,0.00645442]
[1723958917262,0.66273057,59590.0,59554.0,0.52352619]
[1723958917263,0.31562957,59572.0,59554.0,0.52352619]
[1723958917423,1.30211393,59572.0,59564.0,0.0758]
[1723958917855,1.42511393,59572.0,59564.0,0.0758]
[1723958918029,1.55295832,59572.0,59564.0,0.0758]
[1723958918181,1.55695832,59572.0,59558.0,0.0758]
[1723958918584,1.57095832,59572.0,59558.0,0.0758]
[1723958919411,1.59371201,59572.0,59558.0,0.0758]
[1723958919811,1.60771201,59572.0,59558.0,0.0758]
[1723958920015,1.68586059,59572.0,59558.0,0.0758]
[1723958920416,1.53526251,59572.0,59558.0,0.0758]
[1723958922570,1.51877325,59572.0,59558.0,0.0758]
[1723958924140,1.44062467,59572.0,59571.0,0.0011075]
[1723958927269,1.46691117,59572.0,59571.0,0.0011075]
[1723958927693,1.40401117,59572.0,59571.0,0.0011075]
[1723958929093,1.47130717,59572.0,59571.0,0.0011075]
[1723958931732,1.4400861,59572.0,59571.0,0.0011075]
[1723958931932,1.47170355,59572.0,59571.0,0.1480075]
[1723958932130,1.34643891,59572.0,59571.0,0.1480075]
[1723958932341,1.42670348,59572.0,59571.0,0.1480075]
[1723958932957,1.42465132,59572.0,59571.0,0.0011075]
[1723958933166,1.42465132,59572.0,59563.0,0.0663]
[1723958933167,0.45417457,59571.0,59570.0,0.07630676]
[1723958933362,1.29096064,59571.0,59570.0,0.07630676]
[1723958933569,1.43922302,59571.0,59570.0,0.07630676]
[1723958934613,1.45322302,59571.0,59570.0,0.07630676]
[1723958934786,1.46722302,59571.0,59570.0,0.07630676]
[1723958936556,1.28011911,59571.0,59570.0,0.07630676]
[1723958936804,1.46152486,59571.0,59570.0,0.07630676]
[1723958937325,1.46352486,59571.0,59570.0,0.07630676]
[1723958937522,1.46152486,59571.0,59570.0,0.07630676]
[1723958938479,1.40538907,59571.0,59570.0,0.07630676]
[1723958938723,1.28011911,59571.0,59570.0,0.07630676]
[1723958939876,1.36211911,59571.0,59570.0,0.07130676]
[1723958940074,1.36411911,59571.0,59570.0,0.07130676]
[1723958940536,1.38840503,59571.0,59570.0,0.07130676]
[1723958943713,1.57009763,59571.0,59570.0,0.07130676]
[1723958943864,1.44479034,59571.0,59570.0,0.07130676]
[1723958944066,1.44479034,59571.0,59554.0,0.0117511]
[1723958944067,0.62863257,59563.0,59554.0,0.0117511]
[1723958944309,1.47224834,59563.0,59554.0,0.0117511]
[1723958944477,0.535361,59555.0,59554.0,0.0117511]
[1723958944653,1.38549941,59555.0,59554.0,0.0117511]
[1723958944864,1.4070954,59555.0,59554.0,0.0117511]
[1723958945293,1.40703763,59555.0,59554.0,0.0117511]
[1723958945493,1.51129612,59555.0,59554.0,0.0117511]
[1723958945697,1.50829612,59555.0,59554.0,0.0117511]
[1723958946026,1.40778463,59555.0,59554.0,0.0117511]
[1723958946316,1.34898711,59555.0,59554.0,0.0117511]
[1723958946523,1.37528076,59555.0,59554.0,0.0117511]
[1723958947319,1.44950519,59555.0,59554.0,0.0923511]
[1723958947471,1.46350519,59555.0,59554.0,0.0923511]
[1723958947877,1.38150519,59555.0,59554.0,0.0923511]
[1723958948478,0.58907057,59552.0,59551.0,1e-06]
[1723958948680,1.18955676,59552.0,59551.0,1e-06]
[1723958948828,1.33421374,59552.0,59551.0,1e-06]
[1723958949029,1.35721374,59552.0,59551.0,1e-06]
[1723958950202,1.32421374,59552.0,59551.0,1e-06]
[1723958950420,1.46247465,59552.0,59551.0,1e-06]
[1723958950625,1.35121374,59552.0,59551.0,1e-06]
[1723958950824,1.43743261,59552.0,59551.0,1e-06]
[1723958951471,1.43743261,59552.0,59542.0,0.0639]
[1723958951472,0.45438557,59543.0,59542.0,0.0001]
[1723958951725,1.33543011,59543.0,59542.0,0.0001]
[1723958951951,1.53262306,59543.0,59542.0,0.0001]
[1723958952357,1.15062854,59543.0,59542.0,0.0001]
[1723958952491,1.20076884,59543.0,59542.0,0.0639]
[1723958952670,1.21476884,59543.0,59542.0,0.0639]
[1723958953330,1.20076884,59543.0,59542.0,0.0639]
[1723958953642,1.21476884,59543.0,59542.0,0.0639]
[1723958953851,1.33047041,59543.0,59542.0,0.0001]
[1723958954004,1.17956311,59543.0,59542.0,0.0001]
[1723958954410,1.25382149,59543.0,59542.0,0.0001]
[1723958954606,1.17862854,59543.0,59542.0,0.0001]
[1723958955008,1.18886561,59543.0,59542.0,0.0001]
[1723958955188,1.17947319,59543.0,59542.0,0.0001]
[1723958955398,1.17947319,59543.0,59542.0,0.0803]
[1723958956962,1.15647319,59543.0,59542.0,0.0803]
[1723958957169,1.15647319,59543.0,59542.0,0.1441]
[1723958958151,1.14247319,59543.0,59542.0,0.1441]
[1723958958336,1.12847319,59543.0,59542.0,0.1441]
[1723958958544,1.14247319,59543.0,59542.0,0.1441]
[1723958958746,1.15647319,59543.0,59542.0,0.1441]
[1723958959129,1.15647319,59543.0,59542.0,0.15851]
[1723958959335,0.05037,59559.0,59551.0,0.050376]
[1723958959594,0.12536886,59572.0,59542.0,0.49000738]
[1723958959595,0.00335119,59560.0,59553.0,0.0615]
[1723958959849,0.050373,59555.0,59554.0,0.11048]
[1723958960254,0.050373,59555.0,59554.0,0.0762]
[1723958960451,0.05372319,59557.0,59554.0,0.0762]
[1723958960658,0.050372,59557.0,59554.0,0.0762]
[1723958961289,0.100734,59563.0,59554.0,0.0762]
[1723958961290,0.05098604,59571.0,59560.0,0.0762]
[1723958961447,0.17490573,59570.0,59561.0,0.0615]
[1723958961656,0.050367,59562.0,59561.0,0.0803071]
[1723958961870,0.22192154,59562.0,59561.0,0.0615]
[1723958962050,0.32265654,59562.0,59561.0,0.0615]
[1723958962283,0.22192154,59562.0,59561.0,0.0615]
[1723958962624,0.22192154,59562.0,59561.0,0.0625]
[1723958963068,0.22192154,59562.0,59561.0,0.0615]
[1723958963279,0.17155454,59562.0,59561.0,0.0615]
[1723958963451,0.100725,59568.0,59561.0,0.0615]
[1723958963452,0.05016104,59573.0,59564.0,0.100731]
[1723958963811,0.07524261,59576.0,59566.0,0.0762]
[1723958963812,0.17155454,59570.0,59566.0,0.0762]
[1723958964419,0.17155454,59570.0,59566.0,0.126563]
[1723958965355,0.18355454,59570.0,59566.0,0.127563]
[1723958965580,0.18355454,59570.0,59567.0,0.0762]
[1723958965785,0.012,59570.0,59569.0,0.389507]
[1723958966127,0.012,59570.0,59569.0,0.288784]
[1723958966483,0.025,59570.0,59569.0,0.288784]
[1723958966684,0.012,59570.0,59569.0,0.188061]
[1723958967132,0.012,59570.0,59569.0,0.1387]
[1723958967133,0.025,59570.0,59569.0,0.1387]
[1723958967662,0.025,59570.0,59569.0,0.1377]
[1723958967663,0.013,59570.0,59569.0,0.1377]
[1723958967879,0.000825,59571.0,59570.0,0.291581]
[1723958968255,0.000825,59571.0,59570.0,0.19086]
[1723958969653,0.008825,59571.0,59570.0,0.19186]
[1723958969911,0.008825,59571.0,59570.0,0.393302]
[1723958970589,0.008825,59571.0,59570.0,0.292581]
[1723958970861,0.008825,59571.0,59570.0,0.393302]
[1723958971100,0.008825,59571.0,59570.0,0.292581]
[1723958971779,0.015825,59571.0,59570.0,0.293581]